Cogmind - Beta 13 @@@ ROGUE MODE // 2024.04.01 @ 15:59:57 Player: adia redmoon Result: Self-destructed Performance ------------- Evolutions (1) 500 Regions Visited (2) 400 Robots Destroyed (15) 75 Value Destroyed (437) 437 Prototype IDs (0) 0 Alien Tech Used (0) 0 Bonus (0) 0 TOTAL SCORE: 1412 Bonus ------- None Cogmind --------- Core Integrity 53/400 Matter 183/300 Energy 100/100 System Corruption 5% Temperature Cool (22) Movement Core (350) Ox6 Location -9/Materials Parts ------- > --- POWER (2) -------- (None) > --- PROPULSION (2) --- (None) > --- UTILITY (3) ------ Large Storage Unit > --- WEAPON (2) ------- (None) > --- INVENTORY (15) --- (None) Peak State ------------ > --- POWER ------------ (None) > --- PROPULSION ------- Wheel Wheel > --- UTILITY ---------- Heat Sink Large Storage Unit Hacking Suite > --- WEAPON ----------- Medium Laser Mini Grenade Launcher > --- INVENTORY -------- Sensor Array [Rating: 10] Favorites ----------- Power Light Ion Engine Engine Light Ion Engine Propulsion Aluminum Leg Leg Aluminum Leg Wheel Wheel Utility Hacking Suite Device Heat Sink Storage Large Storage Unit Processor Signal Interpreter Hackware Hacking Suite Weapon Medium Laser Energy Gun Medium Laser Ballistic Gun Assault Rifle Launcher Mini Grenade Launcher Build | -11 -10 -9 ------- Run | Yrd Mat Mat Slots Evolved 2 | . . 2 Power 1 | . . 1 Propulsion . | . . . Utility 1 | . . 1 Weapon . | . . . Parts Attached 16 | 6 4 6 Power 2 | 1 1 . Engine 2 | 1 1 . Core . | . . . Reactor . | . . . Propulsion 4 | 2 . 2 Treads . | . . . Leg 2 | 2 . . Wheel 2 | . . 2 Hover . | . . . Flight . | . . . Utility 6 | 1 3 2 Device 3 | 1 . 2 Storage 1 | . 1 . Processor 1 | . 1 . Hackware 1 | . 1 . Protection . | . . . Artifact . | . . . Weapon 4 | 2 . 2 Energy Gun 2 | 1 . 1 Energy Cannon . | . . . Ballistic Gun 1 | 1 . . Ballistic Cannon . | . . . Launcher 1 | . . 1 Special Weapon . | . . . Impact Weapon . | . . . Slashing Weapon . | . . . Piercing Weapon . | . . . Special Melee Weapon . | . . . Unidentified Prototypes . | . . . Parts Lost 13 | . 2 11 Power 2 | . 2 . Propulsion 4 | . . 4 Utility 3 | . . 3 Weapon 4 | . . 4 Highest Loss Streak 11 | . 1 11 To Critical Strikes 1 | . 1 . Average Slot Usage (%) 80 | . 94 52 Engine 8 | . 12 . Leg 22 | . 28 11 Wheel 1 | . . 4 Device 3 | . 4 2 Storage 8 | . 6 11 Processor 2 | . 3 . Hackware 9 | . 9 8 Energy Gun 12 | . 14 8 Ballistic Gun 10 | . 14 4 Naked Turns . | . . . Heaviest Build 27 | 8 27 24 Greatest Support 20 | 20 20 20 Greatest Overweight (x) 6 | . 1 6 Average Overweight (x) . | . . 1 Largest Inventory Capacity 15 | 5 15 15 Average Capacity 10 | 5 9 15 Most Carried 6 | 5 5 6 Average Carried 3 | 2 4 3 Final Capacity 15 | 5 15 15 Final Carried 5 | 3 5 . Class Distribution -------------------- 100% | Mutant Dominant Class ---------------- Mutant | -10/Materials Mutant | -9/Materials Resources | -11 -10 -9 ----------- Run | Yrd Mat Mat Matter Collected 354 | 238 116 . Remotely . | . . . Salvage Created 372 | 32 276 64 Parts 21 | 1 19 1 Haulers Intercepted . | . . . Recyclers Shooed 1 | . 1 . Parts Field Recycled . | . . . Retrieved Matter . | . . . Parts Self-Destructed . | . . . Prevented . | . . . Kills | -11 -10 -9 ------- Run | Yrd Mat Mat Combat Hostiles Destroyed 12 | 1 8 3 Guns 9 | 1 8 . AOE 3 | . . 3 Classes Destroyed 5 | 1 3 1 Operator 2 | . 1 1 Watcher 1 | . 1 . Swarmer 4 | . 4 . Grunt 7 | 1 4 2 Sentry 1 | . . 1 Best Kill Streak 7 | 1 7 4 Combat Bots Only 3 | 1 3 3 Max Kills in Single Turn 1 | 1 1 1 Gunslinging . | . . . Exploded 1 | . . 1 Melee . | . . . Uniques/NPCs Destroyed . | . . . Combat | -11 -10 -9 -------- Run | Yrd Mat Mat Hostile Shots Fired 146 | 4 63 79 Missed 44 | 2 21 21 Damage Taken 1336 | 22 408 906 Core 454 | . 107 347 Absorbed by Shields . | . . . Core Remaining (%) 78 | 100 57 . Volleys Fired 47 | 3 29 15 Largest 2 | 2 2 2 Hottest 80 | 70 70 80 Shots Fired 85 | 6 58 21 Gun 77 | 6 58 13 Cannon . | . . . Launcher 8 | . . 8 Special . | . . . Kinetic 32 | 3 29 . Thermal 45 | 3 29 13 Explosive 8 | . . 8 Electromagnetic . | . . . Robot Hit Streak 13 | 4 13 7 Robot Miss Streak 4 | 2 4 2 Penetration Max . | . . . Secondary Targets 2 | . 2 . Max Gunslinging Chain 1 | . 1 . Shots Hit Robots 58 | 4 38 16 Core Hits 26 | 2 15 9 Critical Kills . | . . . Critical Parts Destroyed . | . . . Critical Strikes 1 | 1 . . Burn 1 | 1 . . Melee Attacks . | . . . Impact . | . . . Slashing . | . . . Piercing . | . . . Sneak Attacks . | . . . Combat Hostiles . | . . . Follow-up Attacks . | . . . Damage Inflicted 974 | 52 500 422 Guns 674 | 52 500 122 Cannons . | . . . Explosions 300 | . . 300 Melee . | . . . Ramming . | . . . Kinetic 274 | 27 247 . Thermal 400 | 25 253 122 Explosive 264 | . . 264 Electromagnetic 36 | . . 36 Impact . | . . . Slashing . | . . . Piercing . | . . . Highest Corruption 5 | . . 5 Average Corruption 5 | . . 5 Corruption Purged . | . . . Corruption Blocked . | . . . Effects 1 | . . 1 Heat Flow Errors 1 | . . 1 Overload Shots . | . . . Overflow Damage 27 | . . 27 Projectiles . | . . . Explosions 27 | . . 27 Melee . | . . . Knockbacks . | . . . Impact . | . . . Kinetic . | . . . Secondary . | . . . Self-Inflicted Damage 55 | . . 55 Shots 2 | . . 2 Rammed . | . . . Targets Rammed . | . . . Kicked . | . . . Crushed . | . . . Highest Temperature 101 | 39 27 101 Average Temperature 17 | 23 12 20 Received Heat Transfer 492 | 12 132 348 Siege Activations . | . . . Robots Corrupted . | . . . Combat Hostiles . | . . . Parts Fried . | . . . Impact Corruptions . | . . . Robots Melted . | . . . Combat Hostiles . | . . . Parts Melted 3 | 1 1 1 Heat Transferred 1258 | 148 740 370 Parts Sabotaged . | . . . Parts Stolen . | . . . Parts Stripped . | . . . Power Chain Reactions . | . . . Alert | -11 -10 -9 ------- Run | Yrd Mat Mat Peak Influence 239 | 20 195 239 Initial 81 | . 13 81 Average 114 | 3 135 130 Maximum Alert Level 1 | . . 1 Low Security (%) 91 | 100 100 70 Level 1 8 | . . 29 Level 2 . | . . . Level 3 . | . . . Level 4 . | . . . Level 5 . | . . . High Security . | . . . Max Security . | . . . Squads Dispatched 2 | . 1 1 Investigation 1 | . 1 . Extermination . | . . . Reinforcement 1 | . . 1 Assault . | . . . Garrison . | . . . Intercept . | . . . Searches Triggered . | . . . Construction Impeded . | . . . Haulers Reinforced . | . . . Active Scanning Responses . | . . . Cargo Convoy Interrupts . | . . . Stealth | -11 -10 -9 --------- Run | Yrd Mat Mat Distress Signals 2 | . 2 . Communications Jammed . | . . . Distress Signals . | . . . Times Spotted 23 | 1 13 9 Peak Tracking Total 7 | 1 4 7 Tactical Retreats . | . . . Traps | -11 -10 -9 ------- Run | Yrd Mat Mat Traps Triggered 1 | . 1 . Indirectly . | . . . Trap Hack Attempts . | . . . Triggered . | . . . Disarmed . | . . . Reprogrammed . | . . . Reused . | . . . Traps Extracted . | . . . Installed . | . . . Triggered . | . . . Machines | -11 -10 -9 ---------- Run | Yrd Mat Mat Machines Disabled 4 | . . 4 Max in Single Turn 3 | . . 3 Machines Repaired . | . . . Machines Dismantled . | . . . Machines Sabotaged . | . . . Overloaded Fab Kills . | . . . Hacking | -11 -10 -9 --------- Run | Yrd Mat Mat Machines Accessed . | . . . Terminals . | . . . Fabricators . | . . . Repair Stations . | . . . Recycling Units . | . . . Scanalyzers . | . . . Garrison Access . | . . . Total Hacks . | . . . Successful . | . . . Failed . | . . . Catastrophic . | . . . Database Lockouts . | . . . Manual . | . . . Terminals . | . . . Fabricators . | . . . Repair Stations . | . . . Recycling Units . | . . . Scanalyzers . | . . . Garrison Access . | . . . Terminal Hacks . | . . . Fabricator Hacks . | . . . Repair Station Hacks . | . . . Recycling Unit Hacks . | . . . Scanalyzer . | . . . Garrison Access Hacks . | . . . Unauthorized Hacks . | . . . Terminals . | . . . Fabricators . | . . . Repair Stations . | . . . Recycling Units . | . . . Scanalyzers . | . . . Garrison Access . | . . . Data Cores Recovered . | . . . Used . | . . . Hacking Detections . | . . . Full Trace Events . | . . . Feedback Events . | . . . Feedback Blocked . | . . . Robot Schematics Acquired . | . . . Robots Built . | . . . Authchips . | . . . Time . | . . . Total Robot Build Rating . | . . . Part Schematics Acquired . | . . . Parts Built . | . . . Authchips . | . . . Time . | . . . Total Part Build Rating . | . . . Parts Repaired . | . . . Time . | . . . Parts Recycled . | . . . Recycled Matter . | . . . Retrieved Matter . | . . . Retrieved Components . | . . . Parts Scanalyzed . | . . . Part Schematics Acquired . | . . . Parts Damaged . | . . . Bothacking | -11 -10 -9 ------------ Run | Yrd Mat Mat Used RIF Installer . | . . . Robots Hacked . | . . . Non-combat . | . . . Combat . | . . . Robot Hacks Applied . | . . . Relay Couplers Released . | . . . Fabnet Peak Effective % . | . . . Robots Rewired . | . . . Allies Hacked . | . . . Hacks Repelled . | . . . Allies | -11 -10 -9 -------- Run | Yrd Mat Mat Total Allies . | . . . Largest Group . | . . . Highest-Rated Group . | . . . Highest-Rated Ally . | . . . Total Orders . | . . . Ally Attacks . | . . . Total Damage . | . . . Kills . | . . . Allies Corrupted . | . . . Allies Melted . | . . . Intel | -11 -10 -9 ------- Run | Yrd Mat Mat Robot Analysis Total . | . . . Derelict Logs Recovered . | . . . Drone Launches . | . . . Drone Recoveries . | . . . Exploration | -11 -10 -9 ------------- Run | Yrd Mat Mat Turns Passed 535 | 79 304 152 Spaces Moved 278 | 73 137 68 Core 47 | 46 . 1 Treads . | . . . Legs 201 | 27 137 37 Wheels 30 | . . 30 Hover . | . . . Flight . | . . . Fastest Speed 50 | 50 120 95 Average Speed 133 | 75 151 159 Slowest Speed 350 | 120 190 350 Overloaded Moves . | . . . Propulsion Burnouts . | . . . Robots Hopped . | . . . Cave-ins Triggered 1 | . . 1 Exploration Rate (%) 16 | 8 29 13 Regions Visited 2 Branch Regions . Pre-discovered Areas . | . . . Known Exits Taken . | . . . Unknown Exits Taken 2 | 1 1 . Scrap Searched . | . . . Spaces Dug . | . . . Terrain Destroyed 67 | . . 67 Melee . | . . . Projectile . | . . . AOE 67 | . . 67 Terrain Rammed . | . . . Walls Destroyed . | . . . Machines Disabled . | . . . Actions | -11 -10 -9 --------- Run | Yrd Mat Mat Total 356 | 90 176 90 Wait . | . . . Move 276 | 72 136 68 Hop . | . . . Pick Up 16 | 9 6 1 Fast Attach . | . . . Attach 14 | 6 2 6 Detach . | . . . Swap 2 | . 2 . Drop 1 | . 1 . Fire 47 | 3 29 15 Melee . | . . . Ram . | . . . Kick . | . . . Crush . | . . . Escape Stasis . | . . . Rewire . | . . . Trap . | . . . Miscellaneous . | . . . Route ------- -11/Scrapyard -10/Materials -9/Materials History --------- Turn | Location | Event 2 | -11/Scrapyard | Met Revision 17 54 | -11/Scrapyard | Discovered new exit (range 8) 80 | -11/Scrapyard | Entered Materials 306 | -10/Materials | Build established: Mutant 352 | -10/Materials | Discovered new exit (range 7) 384 | -10/Materials | Entered another Materials area 384 | -9/Materials | Evolved 2 slots: Power x1, Utility x1 499 | -9/Materials | Crushed by falling debris 507 | -9/Materials | Core integrity fell below 50% 534 | -9/Materials | Core integrity fell below 20% 536 | -9/Materials | Self-destructed Last Messages --------------- Wheel destroyed. System corrupted by crushing effect (+5). Mni. Grenade Launcher destroyed. Fusion Modulator explodes. The unstable cave ceiling collapses. U-05 Engineer builds a Door. Critical hit (Burn: +37). Med. Laser destroyed. Open spaces previously occupied by now-destroyed walls and earth have a slight glow to them. Consecutive moves through these unstable areas may cause a cave-in, but only if doing so for extended periods. Tunneling a short distance between rooms is safe unless the area was destabilized by an explosion. The unstable cave ceiling collapses. K-01 Serf cleans the Material Processor. System corrupted: Heat flow error (+129). Wheel destroyed. Sensor Array destroyed. Map ----- +----------------------------------------------------+ | ????????????????????# #??# #???? | | ????????????????????# #??# #???? | | ????????#???????????# #??# #???? | | ???????## ????????## ##?# #???? | | ???????# ####### #?### #???? | | ???????# ###?? #???? | | ???????+ T ##? #???? | | ???????# ## ##??? | | ???????# ####### #??? | | ???????## ???????## # # ##?? | | ?????????????????# ### | | ?????????????????# # # | | ?????????????????# # | | ?????????????????# # """ | | ?????????????????# ]" | | ?????????????????# " | | ?????????????????# ? " " | | ?????????????????# " " | | ?????????????????#######+#"" "# | | ???????????????????????# # """"""""# | | ???????????????????????#Y### ! # | | ???????????????????????#g#?# # | | ???????????????????????#Y#?# # | | ?????????????########### ### # | | ?????????? u # """ # | | ??????????Y @ + """"" # | | ?????????? u u m # """"" # | | ???????????? ############# # """"" # | | ?????????????????????????# # ?""" # | | ?????????????????????????# # # | | ?????????????????????????# # # | | ?????????????????????????# ######### | | ?????????????????????????# #???????? | | ?????????????????????????? ????????? | | ???????????????????????????????????? | | ?????????????????????????? ????????? | | ?????????????????????????? ????????? | | ?????????????????????????? ????????? | | ??????????????????????????+????????? | | ???????????????????????????????????? | | ???????????????????????????????????? | | ???????????????????????????????????? | | ???????????????????????????????????? | | ???????????????????????????????????? | | ???????????????????????????????????? | | ???????????????????????????????????? | | ???????????????????????????????????? | | ???????????????????????????????????? | | ???????????????????????????????????? | | ???????????????????????????????????? | +----------------------------------------------------+ Best States ------------- Heat Dissipation 38 Energy Generation 10 Energy Capacity 125 Matter Stores 278 Matter Capacity 300 Sight Range 16 Robot Scan Range 14 Terrain Scan Density 10 Evasion (%) 55 Offensive Hacking 10 Item Schematics ----------------- None Robot Schematics ------------------ None Fabricated ------------ Nothing Alien Tech Used ----------------- None Achievements -------------- Crack Shot Uninvited Guest Unlikely Earthworm Challenges ------------ None Game ------ Seed DerelictZioniteMachine Manual? 0 Play Time 00:12:53 Cumulative 0.1 hours Start 2024.04.01 @ 15:46:41 End 2024.04.01 @ 15:59:57 Sessions 1 Manual Loads 0 Difficulty Rogue Special Mode None Game No. 2 Rogue 2 Adventurer 0 Explorer 0 Win Type - Total 0 Types 0/0/0/0/0/0/0/0/0 Lore% 0 Gallery% 1 Achievement% 1 Wizard Run 0 Options --------- Layout 1 ASCII 0 Keyboard 0 Movement Mouse Keybinds 0 Fullscreen 0 Font 28/SmallcapsGlow Map View 50x35 Zoom Use 0% Tactical HUD 0 Map Filters NONE Filters NONE Steam 1 RUN: bb7fb616-783a-4e46-a42f-2ad912a8feb5